Cogmind - Beta 17.1 @@@ ROGUE MODE // 2026.09.01 @ 21:06:37 Player: Pitt Result: Destroyed by G-34 Mercenary with Small Laser Performance ------------- Evolutions (0) 0 Regions Visited (1) 200 Robots Destroyed (16) 80 Value Destroyed (283) 283 Prototype IDs (0) 0 Alien Tech Used (0) 0 Bonus (0) 0 TOTAL SCORE: 563 Bonus ------- None Cogmind --------- Core Integrity 0/250 Matter 205/300 Energy 158/160 System Corruption 0% Temperature Cool (6) Movement Rolling (80) Location -10/Materials Parts ------- > --- POWER (1) -------- Light Nuclear Core > --- PROPULSION (2) --- Wheel Wheel > --- UTILITY (2) ------ Improved Terrain Scanner > --- WEAPON (2) ------- Light Assault Rifle Light Assault Rifle > --- INVENTORY (5) ---- Light Ion Engine Light Ion Engine Wheel Wheel Mining Laser Peak State ------------ > --- POWER ------------ Light Nuclear Core > --- PROPULSION ------- Wheel Wheel > --- UTILITY ---------- Improved Terrain Scanner Seismic Detector > --- WEAPON ----------- Light Assault Rifle Light Assault Rifle > --- INVENTORY -------- Light Ion Engine Light Ion Engine Wheel Wheel Mining Laser [Rating: 11] Favorites ----------- Power Ion Engine Engine Ion Engine Power Core Light Nuclear Core Propulsion Wheel Wheel Wheel Utility Seismic Detector Device Seismic Detector Weapon Light Assault Rifle Ballistic Gun Light Assault Rifle Launcher Grenade Launcher Build | -11 -10 ------- Run | Yrd Mat Slots Evolved . | . . Power . | . . Propulsion . | . . Utility . | . . Weapon . | . . Parts Attached 13 | 7 6 Power 2 | 1 1 Engine 1 | 1 . Core 1 | . 1 Reactor . | . . Propulsion 4 | 2 2 Treads . | . . Leg . | . . Wheel 4 | 2 2 Hover . | . . Flight . | . . Utility 4 | 3 1 Device 4 | 3 1 Storage . | . . Processor . | . . Hackware . | . . Protection . | . . Artifact . | . . Weapon 3 | 1 2 Energy Gun . | . . Energy Cannon . | . . Ballistic Gun 2 | 1 1 Ballistic Cannon . | . . Launcher 1 | . 1 Special Weapon . | . . Impact Weapon . | . . Slashing Weapon . | . . Piercing Weapon . | . . Special Melee Weapon . | . . Unidentified Prototypes . | . . Parts Lost 3 | . 3 Power . | . . Propulsion 1 | . 1 Utility 1 | . 1 Weapon 1 | . 1 Highest Loss Streak 2 | . 2 To Critical Strikes . | . . Average Backups 3 | 2 5 Power 1 | 1 2 Propulsion . | . 2 Utility . | . . Weapon . | . 1 Tool/Special . | . . Unused Backups 3 | . 3 Power 2 | . 2 Propulsion . | . . Utility . | . . Weapon 1 | . 1 Tool/Special . | . . Average Slot Usage (%) 88 | . 88 Engine 11 | . 11 Core 2 | . 2 Wheel 22 | . 22 Device 28 | . 28 Ballistic Gun 19 | . 19 Launcher 2 | . 2 Peak Build Rating 11 | 8 11 Average Rating 6 | 5 8 On Entrance 4 | . 8 Avg Prop Armor Cover (%) . | . . Naked Turns . | . . Heaviest Build 11 | 8 11 Greatest Support 20 | 20 20 Greatest Overweight (x) . | . . Average Overweight (x) . | . . Largest Inventory Capacity 5 | 5 5 Average Capacity 5 | 5 5 Most Carried 5 | 5 5 Average Carried 3 | 2 5 Final Capacity 5 | 5 5 Final Carried 5 | 5 5 Class Distribution -------------------- 90% | Mutant 9% | Scavenger-Mutant Dominant Class ---------------- Mutant | -10/Materials Resources | -11 -10 ----------- Run | Yrd Mat Matter Collected 352 | 303 49 Remotely 175 | 175 . Salvage Created 456 | 214 242 Parts 42 | 23 19 Haulers Intercepted . | . . Recyclers Shooed 1 | . 1 Parts Field Recycled . | . . Retrieved Matter . | . . Parts Self-Destructed . | . . Prevented . | . . Parts Restored . | . . Kills | -11 -10 ------- Run | Yrd Mat Combat Hostiles Destroyed 5 | . 5 Guns 5 | . 5 Classes Destroyed 6 | 2 4 Worker 1 | . 1 Builder 1 | . 1 Tunneler 7 | 7 . Recycler 1 | 1 . Watcher 1 | . 1 Grunt 5 | . 5 Best Kill Streak 4 | 4 3 Combat Bots Only 2 | . 2 Max Kills in Single Turn 1 | 1 1 Gunslinging . | . . Exploded . | . . Melee . | . . Uniques/NPCs Destroyed . | . . Combat | -11 -10 -------- Run | Yrd Mat Hostile Shots Fired 45 | . 45 Missed 10 | . 10 Hits 35 | . 35 Projectile 35 | . 35 Critical Strikes 2 | . 2 Damage Taken 552 | . 552 Core 254 | . 254 Absorbed by Shields . | . . Core Remaining (%) 100 | 100 . Volleys Fired 82 | 43 39 Largest 2 | 1 2 Hottest 50 | 20 50 Shots Fired 114 | 43 71 Gun 112 | 43 69 Cannon . | . . Launcher 2 | . 2 Special . | . . Kinetic 112 | 43 69 Thermal . | . . Explosive 2 | . 2 Electromagnetic . | . . Robot Hit Streak 19 | 10 19 Robot Miss Streak 2 | 2 2 Penetration Max . | . . Secondary Targets 1 | . 1 Max Gunslinging Chain 1 | . 1 Shots Hit Robots 85 | 32 53 Core Hits 37 | 15 22 Critical Kills 1 | . 1 Critical Parts Destroyed . | . . Critical Strikes 1 | . 1 Destroy 1 | . 1 Melee Attacks . | . . Impact . | . . Slashing . | . . Piercing . | . . Sneak Attacks . | . . Combat Hostiles . | . . Follow-up Attacks . | . . Damage Inflicted 868 | 283 585 Guns 698 | 283 415 Cannons . | . . Explosions 170 | . 170 Melee . | . . Ramming . | . . Kinetic 698 | 283 415 Thermal 101 | . 101 Explosive 69 | . 69 Electromagnetic . | . . Impact . | . . Slashing . | . . Piercing . | . . Highest Corruption . | . . Average Corruption . | . . Corruption Purged . | . . Corruption Blocked . | . . Overload Shots . | . . Overflow Damage 118 | . 118 Projectiles . | . . Explosions 118 | . 118 Melee . | . . Knockbacks . | . . Impact . | . . Kinetic . | . . Secondary . | . . Self-Inflicted Damage 120 | . 120 Shots 3 | . 3 Rammed . | . . Targets Rammed . | . . Kicked . | . . Crushed . | . . Highest Temperature 75 | . 75 Average Temperature 17 | . 17 Received Heat Transfer 279 | . 279 Siege Activations . | . . Martial Activations . | . . Shielding Activations . | . . Robots Disrupted . | . . Combat Hostiles . | . . Robots Corrupted . | . . Combat Hostiles . | . . Parts Fried . | . . Impact Corruptions . | . . Robots Melted . | . . Combat Hostiles . | . . Parts Melted . | . . Heat Transferred 50 | . 50 Parts Sabotaged . | . . Parts Stolen . | . . Parts Stripped . | . . Power Chain Reactions . | . . Alert | -11 -10 ------- Run | Yrd Mat Maximum Alert Level . | . . Low Security (%) 100 | 100 100 Level 1 . | . . Level 2 . | . . Level 3 . | . . Level 4 . | . . Level 5 . | . . High Security . | . . Max Security . | . . Peak Influence 122 | 10 122 Initial . | . . Average 15 | 1 38 Influence Increases 256 | 40 216 Destroy 0b10 Robot/C 100 | . 100 Destroy 0b10 Robot/NC 55 | 40 15 Destroy Leader 22 | . 22 Successful Hack 12 | . 12 Disable Machine 15 | . 15 Destroy Structure 22 | . 22 Lose Combat Pursuer 30 | . 30 Influence Decreases 154 | 40 114 Time Decay 124 | 40 84 Lost Part 30 | . 30 Squads Dispatched 1 | . 1 Investigation . | . . Extermination . | . . Reinforcement 1 | . 1 Assault . | . . Garrison . | . . Intercept . | . . Searches Triggered . | . . Construction Impeded . | . . Haulers Reinforced . | . . Active Scanning Responses . | . . Cargo Convoy Interrupts . | . . Stealth | -11 -10 --------- Run | Yrd Mat Distress Signals 1 | . 1 Communications Jammed . | . . Distress Signals . | . . Times Spotted 10 | . 10 Peak Tracking Total 4 | . 4 Tactical Retreats 2 | . 2 Traps | -11 -10 ------- Run | Yrd Mat Traps Triggered . | . . Indirectly . | . . Trap Hack Attempts . | . . Triggered . | . . Disarmed . | . . Reprogrammed . | . . Reused . | . . Traps Extracted . | . . Installed . | . . Triggered . | . . Machines | -11 -10 ---------- Run | Yrd Mat Machines Disabled 1 | . 1 Max in Single Turn 1 | . 1 Machines Repaired . | . . Machines Dismantled . | . . Machines Sabotaged . | . . Overloaded Fab Kills . | . . Hacking | -11 -10 --------- Run | Yrd Mat Machines Accessed 2 | . 2 Terminals 2 | . 2 Fabricators . | . . Repair Stations . | . . Recycling Units . | . . Scanalyzers . | . . Garrison Access . | . . Total Hacks 8 | . 8 Successful 3 | . 3 Failed 5 | . 5 Catastrophic . | . . Database Lockouts . | . . Manual 7 | . 7 Terminals 8 | . 8 Fabricators . | . . Repair Stations . | . . Recycling Units . | . . Scanalyzers . | . . Garrison Access . | . . Terminal Hacks 3 | . 3 Terminal Index 1 | . 1 Reinforcement Status 1 | . 1 Zone Layout 1 | . 1 Fabricator Hacks . | . . Repair Station Hacks . | . . Recycling Unit Hacks . | . . Scanalyzer . | . . Garrison Access Hacks . | . . Unauthorized Hacks . | . . Terminals . | . . Fabricators . | . . Repair Stations . | . . Recycling Units . | . . Scanalyzers . | . . Garrison Access . | . . Data Cores Recovered . | . . Used . | . . Hacking Detections 2 | . 2 Full Trace Events . | . . Feedback Events . | . . Feedback Blocked . | . . Robot Schematics Acquired . | . . Robots Built . | . . Authchips . | . . Time . | . . Total Robot Build Rating . | . . Part Schematics Acquired . | . . Parts Built . | . . Authchips . | . . Time . | . . Total Part Build Rating . | . . Part Studies Acquired . | . . Parts Repaired . | . . Time . | . . Parts Recycled . | . . Recycled Matter . | . . Retrieved Matter . | . . Retrieved Components . | . . Parts Scanalyzed . | . . Part Schematics Acquired . | . . Parts Damaged . | . . Bothacking | -11 -10 ------------ Run | Yrd Mat Used RIF Installer . | . . Robots Hacked . | . . Non-combat . | . . Combat . | . . Robot Hacks Applied . | . . Relay Couplers Released . | . . Fabnet Peak Effective % . | . . Robots Rewired . | . . Allies Hacked . | . . Hacks Repelled . | . . Allies | -11 -10 -------- Run | Yrd Mat Total Allies . | . . Largest Group . | . . Highest-Rated Group . | . . Highest-Rated Ally . | . . Total Orders . | . . Ally Attacks . | . . Total Damage . | . . Kills . | . . Allies Corrupted . | . . Allies Melted . | . . Intel | -11 -10 ------- Run | Yrd Mat Active Infowar (turns) 550 | 300 250 Terrain 256 | 6 250 Seismic 548 | 300 248 Robot Analysis Total . | . . Derelict Logs Recovered . | . . Drone Launches . | . . Drone Recoveries . | . . Exploration | -11 -10 ------------- Run | Yrd Mat Turns Passed 636 | 386 250 Spaces Moved 292 | 151 141 Core 3 | 3 . Treads . | . . Legs . | . . Wheels 289 | 148 141 Hover . | . . Flight . | . . Fastest Speed 50 | 50 80 Average Speed 79 | 79 80 Slowest Speed 80 | 80 80 Overloaded Moves . | . . Propulsion Burnouts . | . . Robots Hopped . | . . Potential Cave-ins . | . . Cave-ins Triggered . | . . Exploration Rate (%) 13 | 4 22 Regions Visited 1 Branch Regions . Pre-discovered Areas . | . . Known Exits Taken . | . . Unknown Exits Taken 1 | 1 . Scrap Searched . | . . Spaces Dug . | . . Terrain Destroyed 22 | . 22 Melee . | . . Projectile . | . . AOE 22 | . 22 Terrain Rammed . | . . Walls Destroyed . | . . Machines Disabled . | . . Actions | -11 -10 --------- Run | Yrd Mat Total 602 | 379 223 Wait 206 | 172 34 Move 291 | 150 141 Hop . | . . Pick Up 6 | 6 . Fast Attach 9 | 6 3 Attach . | . . Detach . | . . Swap 4 | 1 3 Drop 4 | 1 3 Fire 82 | 43 39 Melee . | . . Ram . | . . Kick . | . . Crush . | . . Escape Stasis . | . . Rewire . | . . Trap . | . . Miscellaneous . | . . Route ------- -11/Scrapyard -10/Materials (discovered 2 exits: [*Mat] / [*Min]) History --------- Turn | Location | Event 15 | -11/Scrapyard | Discovered new exit (range 16) 387 | -11/Scrapyard | Entered Materials 403 | -10/Materials | Build established: Mutant 464 | -10/Materials | Discovered new exit (range 10) 466 | -10/Materials | Discovered new exit (range 10) 611 | -10/Materials | Core integrity fell below 50% 621 | -10/Materials | Core integrity fell below 20% 637 | -10/Materials | Destroyed by G-34 Mercenary with Small Laser Last Messages --------------- 00585_ Dropped Ion Engine. 00587_ K-01 Serf collects debris. 00587_ Acquired Wheel. 00590_ K-01 Serf collects debris. 00590_ Dropped Wheel. 00591_ W-16 Scout sends out distress signal. 00593_ K-01 Serf collects debris. 00595_ R-06 Scavenger collects Aluminum Leg. 00598_ W-16 Scout destroyed. 00599_ R-06 Scavenger collects Aluminum Leg. 00600_ K-01 Serf collects debris. 00620_ R-06 Scavenger collects Ion Engine. 00624_ Critical hit (Burn: +37). 00625_ G-47 Trooper suffers critical hit (Destroy). 00625_ G-47 Trooper destroyed. 00625_ Switching to secondary target: G-34 Mercenary. 00626_ K-01 Serf collects debris. 00630_ K-01 Serf cleans the Terminal. 00634_ K-01 Serf collects debris. 00635_ Seismic Detector destroyed. Map ----- +----------------------------------------------------+ | ????#????????????# "" # # | | ?????????????????# """ " # # | | ???#?????????????# """ # # # | | ?????????????????# """ + + # | | ?????????????????# # ####### | | ?????????????????# # #######? | | ?????????????????# "Y" ## ### #? | | ???????????# ????# """ ######## !#? | | ???????????# ???# #??????# #? | | ???????????# #####+############# ""## | | ???????????# # T"#? | | ???????????# < # ""#? | | ???????????# # #? | | ???????????#########+########+#############? | | ????????????#?# ## """ ######### | | ??????????????# ## """ # # | | ???????????#??# ## """ # # | | ??????????????# ## # # | | ??????????????# ## # # | | ?????????????#############+## # # | | ???????????????????????#?#=######+## # | | ????????????????#????#####[##???# ## """ # | | ?????????????????????#!#=%*=##### ## """"" # | | ?????????????????????#*!=g%=*% # """"" # | | ?????????????#??##???### *T!k% + """"" # | | ?????????????##????????# @ =##### # """ # | | ???????????????#?#?????######?#????#???????? | | ????????????????#?????#????????#???????????? | | ????????????????????????#?????? ????? ?????? | | ??????????????#?????#????????????????? ????? | | ??????????????????##????? ???????? ????????? | | ?????????????#???#????????????##???????????? | | ???????????????#???????? ??????????? ??????? | | ????????????????????????????????????#??????? | | ?????????????? ? ???? ???????????? ????????? | | ?????????????????????????????? ??????"?????? | | ???????????????????????? ??? ???????"?????? | | ??????????????????????? ?? ????????????????? | | ????????????????????? ??? ?? ????? ????????? | | ?????????????????????????????????? ????????? | | ???????????????????????????????????????????? | | ???????????????????????????????????????????? | | ???????????????????????????????????????????? | | ???????????????????????????????????????????? | | ???????????????????????????????????????????? | | ???????????????????????????????????????????? | | ???????????????????????????????????????????? | | ???????????????????????????????????????????? | | ???????????????????????????????????????????? | | ???????????????????????????????????????????? | +----------------------------------------------------+ Best States ------------- Heat Dissipation 25 Energy Generation 14 Energy Capacity 250 Matter Stores 300 Matter Capacity 300 Sight Range 16 Terrain Scan Range 16 Terrain Scan Density 10 Evasion (%) 44 Item Schematics ----------------- None Robot Schematics ------------------ None Fabricated ------------ Nothing Repaired ---------- Nothing Studied --------- None Alien Tech Used ----------------- None Achievements -------------- None Challenges ------------ None Game ------ Seed ControlNanofilamentsRipper Manual? 0 Play Time 00:08:03 Cumulative 281.1 hours Start 2026.09.01 @ 21:01:21 End 2026.09.01 @ 21:06:37 Sessions 1 Manual Loads 0 Difficulty Rogue Special Mode None Game No. 432 Rogue 432 Adventurer 0 Explorer 0 Win Type - Total 0 Types 0/0/0/0/0/0/0/0/0/0 Lore% 50 Gallery% 51 Achievement% 32 Wizard Run 0 Options --------- Layout 0 ASCII 0 Keyboard 1 Movement Numpad Keybinds 0 Fullscreen 1 Font 18/SmallcapsGlow Map View 76x50 Zoom Use 0% Tactical HUD 1 Map Filters NONE Filters NONE Steam 1 RUN: cd52754f-62b0-4c0e-97ba-556ae5732fc3